bitfinex/quotes_ETHUSD_20220305
["timestamp","ask_amount","ask_price","bid_price","bid_amount"]
[1646466194407,0.00181145,2639.4,2639.3,3.5]
[1646466194808,0.00181145,2639.4,2639.3,4.5]
[1646466195008,0.00181145,2639.4,2639.3,1.0]
[1646466195308,3.8,2639.5,2639.2,1.8952487]
[1646466195510,3.80181145,2639.5,2639.2,1.8952487]
[1646466196313,3.8,2639.5,2639.3,3.5]
[1646466196613,3.80290997,2639.5,2639.3,3.5]
[1646466196967,3.80290997,2639.5,2639.3,4.5]
[1646466197156,3.80290997,2639.5,2639.2,2.8952487]
[1646466197357,3.80290997,2639.5,2639.2,1.94764]
[1646466197557,3.8,2639.5,2639.2,1.94764]
[1646466197857,3.80290997,2639.5,2639.2,0.94764]
[1646466198762,3.8,2639.5,2639.2,0.94764]
[1646466198963,3.8,2639.5,2639.3,0.31990552]
[1646466199165,3.80290997,2639.5,2639.3,0.31990552]
[1646466199866,2.21036972,2639.5,2639.3,0.31990552]
[1646466200068,2.20745975,2639.5,2639.3,0.31990552]
[1646466200271,2.21014853,2639.5,2639.3,0.31990552]
[1646466201305,2.20745975,2639.5,2639.3,0.31990552]
[1646466201508,2.21014853,2639.5,2639.3,0.31990552]
[1646466202407,2.20745975,2639.5,2639.3,0.31990552]
[1646466202607,2.21014853,2639.5,2639.3,0.31990552]
[1646466203008,2.21014853,2639.5,2639.2,0.94764]
[1646466203407,2.21014853,2639.5,2639.3,0.29035726]
[1646466203612,2.20745975,2639.5,2639.3,0.29035726]
[1646466204108,2.21017975,2639.5,2639.3,0.29035726]
[1646466204762,2.20745975,2639.5,2639.3,0.29035726]
[1646466206362,2.20745975,2639.5,2639.3,1.23795276]
[1646466206563,2.20745975,2639.5,2639.3,0.9475955]
[1646466208503,2.20586972,2639.5,2639.3,0.9475955]
[1646466208704,2.20872144,2639.5,2639.3,0.9475955]
[1646466209306,2.20872144,2639.5,2639.4,0.29045483]
[1646466209707,2.20586972,2639.5,2639.4,0.29045483]
[1646466209909,2.20872144,2639.5,2639.3,0.9475955]
[1646466210111,2.20872144,2639.5,2639.4,0.29059867]
[1646466210314,3.45909644,2639.5,2639.4,0.29059867]
[1646466210915,3.45624472,2639.5,2639.4,0.29059867]
[1646466211115,3.45624472,2639.5,2639.3,0.29059867]
[1646466211315,2.20586972,2639.5,2639.4,0.29059867]
[1646466211516,3.45636637,2639.5,2639.4,0.29059867]
[1646466211715,3.45636637,2639.5,2639.3,0.29059867]
[1646466211964,1.25052319,2639.4,2639.2,3.8428314]
[1646466212159,2.20586972,2639.5,2639.3,0.29063661]
[1646466212357,2.15586972,2639.5,2639.3,0.29063661]
[1646466212760,1.25051794,2639.4,2639.2,0.94764]
[1646466212960,1.25051794,2639.4,2639.3,0.29078162]
[1646466213159,1.20051794,2639.4,2639.3,0.29078162]
[1646466213562,1.20321776,2639.4,2639.3,0.29078162]
[1646466213761,2.23344025,2639.4,2639.2,0.94764]
[1646466213963,1.03292231,2639.4,2639.2,0.94764]
[1646466214362,1.03022249,2639.4,2639.2,0.94764]
[1646466214661,1.03294453,2639.4,2639.2,0.94764]
[1646466215706,1.03022249,2639.4,2639.0,0.9477971]
[1646466215911,1.03022249,2639.4,2639.0,1.8956571]
[1646466216111,1.03294453,2639.4,2639.0,1.8956571]
[1646466216311,1.03162216,2639.4,2639.0,0.94786]
[1646466216512,1.03162216,2639.4,2638.9,1.2113]
[1646466216914,1.02890012,2639.4,2638.9,1.2113]
[1646466217113,0.98162209,2639.4,2638.9,1.2113]
[1646466217715,0.98162209,2639.4,2639.0,0.94785]
[1646466218113,0.97890012,2639.4,2639.0,0.94785]
[1646466218314,0.98161881,2639.4,2639.0,0.94785]
[1646466219316,0.97890012,2639.4,2639.0,0.94785]
[1646466219559,0.98161884,2639.4,2639.3,0.04277311]
[1646466219760,0.93161884,2639.4,2639.3,0.04277311]
[1646466220364,0.84572027,2639.4,2639.3,0.04277311]
[1646466220959,2.15835987,2639.5,2639.3,0.04277311]
[1646466221660,2.15586972,2639.5,2639.3,0.04277311]
[1646466221860,2.15836033,2639.5,2639.3,0.04277311]
[1646466222862,2.15586972,2639.5,2639.3,0.04277311]
[1646466223062,2.15836033,2639.5,2639.3,0.04277311]
[1646466224106,2.15586972,2639.5,2639.3,0.12901091]
[1646466224308,2.15836033,2639.5,2639.3,0.12901091]
[1646466225308,2.15586972,2639.5,2639.3,0.12901091]
[1646466225511,2.1583827,2639.5,2639.3,0.12901091]
[1646466226511,2.15586972,2639.5,2639.3,0.12901091]
[1646466226711,2.1583827,2639.5,2639.3,0.12901091]
[1646466227562,2.15586972,2639.5,2639.3,0.12901091]
[1646466227765,1.33225522,2639.5,2639.3,0.12901091]
[1646466227965,1.3347682,2639.5,2639.3,0.12901091]
[1646466228764,1.33225522,2639.5,2639.3,0.12901091]
[1646466228963,1.33384659,2639.5,2639.3,0.12901091]
[1646466229263,1.33384659,2639.5,2639.2,20.44864558]
[1646466229463,1.33384659,2639.5,2639.4,0.94752]
[1646466230065,1.33225522,2639.5,2639.2,18.96564339]
[1646466230265,1.33225522,2639.5,2639.2,19.75925444]
[1646466230911,1.33225522,2639.5,2639.2,20.44864558]
[1646466231414,1.33495617,2639.5,2639.2,8.87864558]
[1646466231613,1.33495617,2639.5,2639.2,6.44795489]
[1646466232213,1.33495617,2639.5,2639.2,5.44773]
[1646466232414,1.33225522,2639.5,2639.2,1.94773]
[1646466232615,1.33506474,2639.5,2639.2,1.94773]
[1646466232817,1.33506474,2639.5,2639.2,0.94773]
[1646466233015,1.33506474,2639.5,2639.1,4.7907778]
[1646466233217,2.54141709,2639.5,2639.2,0.27139368]
[1646466233416,1.27463257,2639.4,2639.2,0.27139368]
[1646466235061,1.27744211,2639.4,2639.3,0.27139368]
[1646466235261,4.77744211,2639.4,2639.3,0.27139368]
[1646466235462,4.77744211,2639.4,2638.9,0.27139368]
[1646466235463,1.27744211,2639.4,2638.9,0.27139368]
[1646466235661,4.77744211,2639.4,2638.9,0.27139368]
[1646466235866,1.27463257,2639.3,2638.9,0.27139368]
[1646466236064,1.27463257,2639.2,2638.9,0.27139368]
[1646466236263,1.27463257,2639.1,2638.9,0.27139368]
[1646466236464,0.00355511,2639.4,2638.9,0.27139368]
[1646466236664,0.00259511,2639.4,2638.9,0.27139368]
[1646466236865,1.27787221,2639.4,2638.9,0.27139368]
[1646466237164,1.2752771,2639.4,2638.9,0.27139368]
[1646466237564,1.27787221,2639.4,2638.9,0.27139368]
[1646466238410,1.2752771,2639.4,2638.9,0.27139368]
[1646466238607,1.27787221,2639.4,2638.9,0.27139368]
[1646466239709,1.2752771,2639.4,2638.9,0.27139368]
[1646466239910,1.27776486,2639.4,2638.9,0.27139368]
[1646466240814,1.2752771,2639.4,2638.9,0.27139368]
[1646466241015,1.27776486,2639.4,2638.9,0.27139368]
[1646466241214,1.27776486,2639.4,2639.0,1.8955964]
[1646466241416,1.27776486,2639.4,2639.1,0.27139368]
[1646466242055,1.2752771,2639.4,2639.1,0.27139368]
[1646466242254,1.27776492,2639.4,2639.1,0.27139368]
[1646466243261,1.2752771,2639.4,2639.1,0.27139368]
[1646466243462,1.27778514,2639.4,2639.1,0.27139368]
[1646466244463,1.2752771,2639.4,2639.1,0.27139368]
[1646466244663,1.27778514,2639.4,2639.1,0.27139368]
[1646466245703,1.2752771,2639.4,2639.1,0.27139368]
[1646466245909,1.27778514,2639.4,2639.1,0.27139368]
[1646466246910,1.2752771,2639.4,2639.1,0.27139368]
[1646466247111,1.27778175,2639.4,2639.1,0.27139368]
[1646466247712,0.00250465,2639.4,2639.2,0.95831993]
[1646466247912,1.29269884,2639.4,2639.3,8.47139368]
[1646466248312,1.29520349,2639.4,2639.3,8.47139368]
[1646466249013,0.00250465,2639.4,2639.3,8.47139368]
[1646466249211,0.41125192,2639.5,2639.3,8.47139368]
[1646466249470,0.41125192,2639.5,2639.4,3.77139368]
[1646466249862,1.70375176,2639.5,2639.4,3.77139368]
[1646466250061,0.41125192,2639.5,2639.4,3.77139368]
[1646466254318,0.41125192,2639.5,2639.4,0.27139368]
[1646466254520,1.70329434,2639.5,2639.4,0.27139368]
[1646466256523,2.65438258,2639.5,2639.4,0.27139368]
[1646466263515,2.65438258,2639.5,2639.1,0.71922368]
[1646466263715,1.36234016,2639.5,2639.1,0.71922368]
[1646466265060,1.36484509,2639.5,2639.1,0.71922368]
[1646466266162,0.41125192,2639.5,2639.1,0.71922368]
[1646466266363,0.41375685,2639.5,2639.1,0.71922368]
[1646466266664,0.41375685,2639.5,2639.1,4.90861482]
[1646466266863,0.41375685,2639.5,2639.1,6.80395992]
[1646466267061,0.41375685,2639.5,2639.4,0.90893191]
[1646466267265,0.41125192,2639.5,2639.4,0.90893191]
[1646466267463,0.41375685,2639.5,2639.4,0.90893191]
[1646466267864,0.2304127,2639.5,2639.4,0.90893191]
[1646466268507,0.22790777,2639.5,2639.4,0.90893191]
[1646466271120,0.22790777,2639.5,2639.4,4.40893191]
[1646466271518,0.22790777,2639.5,2639.4,0.90893191]
[1646466272063,0.22790777,2639.5,2639.2,8.97990334]
[1646466272473,0.22790777,2639.5,2639.2,8.03229334]
[1646466272873,1.56167995,2639.9,2639.3,5.6725555]
[1646466273070,1.0889046,2640.3,2639.3,3.8725555]
[1646466273071,0.69730329,2640.0,2639.3,3.8725555]
[1646466273269,0.69730329,2640.0,2639.3,5.0908555]
[1646466273669,0.69730329,2640.0,2639.3,4.1183]
[1646466273870,0.69730329,2640.0,2639.3,1.2183]
[1646466274275,0.69730329,2639.9,2638.9,0.68939114]
[1646466274471,0.69730329,2639.5,2638.6,0.68939114]
[1646466274674,1.13810751,2639.1,2638.5,0.68939114]
[1646466275074,1.13810751,2639.1,2638.4,4.18939114]
[1646466275471,1.13810751,2639.1,2638.4,0.68939114]
[1646466275914,1.13810751,2639.1,2638.6,0.00112556]
[1646466276114,0.69730329,2639.4,2638.6,0.00112556]
[1646466276515,0.69826329,2639.4,2638.6,0.00112556]
[1646466276717,0.69826329,2639.4,2638.4,0.68939114]
[1646466276916,0.69826329,2639.4,2638.3,2.13852062]
[1646466277116,0.69826329,2639.4,2638.9,0.00112545]
[1646466277322,0.69730329,2639.4,2638.9,0.00112545]
[1646466277517,1.0,2639.5,2638.9,0.00112545]
[1646466277917,1.0,2639.5,2638.7,0.9241937]
[1646466278121,2.90995874,2639.6,2638.7,0.9241937]
[1646466278419,0.69826329,2639.6,2639.1,0.00112536]
[1646466278620,1.06910875,2639.5,2639.1,0.00112536]
[1646466279223,1.06910875,2639.5,2638.7,0.9479043]
[1646466279467,1.07006875,2639.5,2638.7,0.9479043]
[1646466279673,1.07006875,2639.5,2639.2,0.00291854]
[1646466279870,1.06910875,2639.5,2639.2,0.00291854]
[1646466280274,0.69826329,2639.7,2639.2,0.00291854]
[1646466280471,0.69730329,2639.7,2638.8,1.0441755]
[1646466280671,0.69730329,2639.7,2639.2,0.00291851]
[1646466281476,0.69730329,2639.6,2639.2,0.00291851]
[1646466281674,0.69730329,2639.6,2638.8,1.0441755]
[1646466281874,0.69826329,2639.6,2639.3,0.00291847]
[1646466282075,0.69730329,2639.6,2639.3,0.00291847]
[1646466282478,1.68778076,2639.7,2639.3,0.00291847]
[1646466282881,1.68778076,2639.7,2638.8,1.0441755]
[1646466283079,1.68778076,2639.7,2639.4,0.00291845]
[1646466283513,1.29029636,2639.6,2639.4,0.00291845]
[1646466284114,1.29029636,2639.6,2638.9,0.25556644]
[1646466284313,1.29029636,2639.6,2639.4,0.0028309]
[1646466285319,1.29029636,2639.6,2638.9,0.25556644]
[1646466285624,1.29029636,2639.6,2639.4,0.0028309]
[1646466285819,0.00096,2639.5,2639.4,0.0028309]
[1646466286020,1.29029636,2639.6,2639.4,0.0028309]
[1646466286420,1.29029636,2639.6,2638.7,0.25556644]
[1646466286620,1.0,2639.5,2638.7,0.25556644]
[1646466286822,1.29029636,2639.4,2638.7,0.25556644]
[1646466287660,0.90603,2639.0,2638.8,0.25556644]
[1646466287860,0.90603,2639.0,2638.9,0.25556644]
[1646466288061,0.90603,2639.0,2638.9,0.25828593]
[1646466288264,2.19630396,2639.0,2638.9,0.25828593]
[1646466288460,2.19630396,2639.0,2638.9,0.00271949]
[1646466288861,2.19630396,2639.0,2638.4,0.25556644]
[1646466289061,1.29027396,2638.9,2638.4,0.25556644]
[1646466289260,1.29027396,2638.9,2638.8,0.00271952]
[1646466290062,1.29027396,2638.9,2638.4,0.25556644]
[1646466290262,1.29027396,2638.9,2638.4,5.65160024]
[1646466290464,0.1721,2639.3,2638.9,0.42971013]
[1646466290709,1.28951832,2639.2,2639.0,0.25556644]
[1646466291115,1.28951832,2639.1,2639.0,0.25556644]
[1646466291512,1.28951832,2639.3,2639.0,0.25828929]
[1646466291714,1.28951832,2639.2,2639.0,0.25828929]
[1646466291912,1.06136463,2639.4,2639.0,0.25828929]
[1646466291913,1.28951832,2639.1,2639.0,0.25828929]
[1646466292312,1.28951832,2639.3,2639.0,0.25828929]
[1646466292514,1.28951832,2639.2,2639.0,0.25556644]
[1646466292714,1.28951832,2639.1,2639.0,0.25556644]
[1646466293012,1.28951832,2639.3,2639.0,0.25556644]
[1646466293316,1.28951832,2639.2,2639.0,0.25556644]
[1646466293515,1.28951832,2639.1,2639.0,0.25556644]
[1646466293712,0.88926463,2639.4,2639.0,0.25556644]
[1646466293713,1.28951832,2639.3,2639.0,0.25556644]
[1646466295166,1.28951832,2639.3,2639.0,0.25829138]
[1646466295967,1.28951832,2639.3,2639.0,0.00272494]
[1646466296172,1.28951832,2639.3,2638.9,0.42971013]
[1646466296368,1.28951832,2639.3,2639.0,0.00272494]
[1646466296968,1.28951832,2639.3,2639.0,0.00115452]
[1646466297368,1.28951832,2639.3,2638.9,0.42971013]
[1646466298071,1.28951832,2639.3,2639.0,0.2552481]
[1646466298717,1.28951832,2639.3,2639.0,0.25797391]
[1646466299113,4.68926463,2639.4,2639.0,0.00272581]
[1646466299413,1.2892077,2639.3,2639.0,0.25796852]
[1646466299816,1.2892077,2639.3,2639.0,0.25524271]
[1646466302367,2.92210329,2639.7,2639.0,0.25524271]
[1646466302368,0.11280161,2640.6,2639.3,4.7]
[1646466302566,0.11280161,2640.6,2640.5,0.01211238]
[1646466302567,1.0,2640.6,2640.5,0.01211238]
[1646466302766,0.0340862,2640.9,2640.5,0.01211238]
[1646466303366,0.96362287,2640.8,2640.5,0.01211238]
[1646466303990,0.96362287,2640.8,2640.2,1.0]
[1646466304168,0.41362287,2640.8,2640.5,0.947161]
[1646466304566,0.41362287,2640.8,2640.6,1.89431]
[1646466305468,3.8340862,2640.9,2640.6,1.89431]
[1646466305725,3.7840862,2640.9,2640.7,3.45]
[1646466305917,3.7840862,2640.9,2640.7,4.39712]
[1646466306119,3.7840862,2640.9,2640.8,3.5]
[1646466306318,0.0428665,2641.1,2640.9,4.7]
[1646466306620,0.0428665,2641.1,2641.0,3.5]
[1646466307018,0.0428665,2641.1,2640.9,0.947016]
[1646466307217,0.04579879,2641.1,2640.9,0.947016]
[1646466308018,0.0428665,2641.1,2640.9,0.947016]
[1646466308219,0.0428665,2641.1,2641.0,3.5]
[1646466308418,0.04564035,2641.1,2641.0,3.5]
[1646466308718,0.04564035,2641.1,2640.9,0.947016]
[1646466309221,0.04564035,2641.1,2641.0,0.61866474]
[1646466309458,0.0428665,2641.1,2641.0,1.13732948]
[1646466309659,0.04564035,2641.1,2641.0,1.13732948]
[1646466310465,0.0428665,2641.1,2641.0,1.13732948]
[1646466310865,0.00915445,2641.1,2641.0,4.63732948]
[1646466311064,0.03505993,2641.2,2641.0,7.47808948]
[1646466311267,0.0175567,2641.3,2641.2,4.7]
[1646466311482,0.0192564,2641.5,2641.3,4.7]
[1646466311771,0.34915868,2641.8,2641.5,0.9467563]
[1646466312066,0.34915868,2641.8,2641.6,3.5]
[1646466312270,0.04035807,2641.7,2641.6,15.07]
[1646466312469,0.04035807,2641.7,2641.6,17.01677]
[1646466312669,0.05,2642.0,2641.8,12.516676]
[1646466312868,0.05,2642.0,2641.9,3.45]
[1646466313071,0.0146101,2642.1,2642.0,4.75]
[1646466313321,0.0580026,2643.2,2642.7,0.94608]
[1646466313524,0.0228653,2644.1,2642.7,0.94608]
[1646466313525,0.008732,2644.3,2643.1,8.72874558]
[1646466313723,0.0144566,2645.0,2644.7,0.34302102]
[1646466313921,0.0145381,2645.3,2644.7,0.34302102]
[1646466314124,5.08672754,2645.6,2644.7,0.34302102]
[1646466314324,10.98542754,2645.6,2644.7,0.34302102]
[1646466314521,3.51542754,2645.6,2645.0,0.51866474]
[1646466314822,4.7,2645.4,2645.0,0.51866474]
[1646466315022,4.55,2645.2,2644.1,2.14764696]
[1646466315320,4.55,2645.2,2643.7,0.46966463]
[1646466315321,3.5,2645.1,2643.7,1.0]
[1646466315522,0.88425086,2644.1,2643.9,1.89224]
[1646466315926,0.88425086,2644.1,2643.6,0.94631]
[1646466315927,3.5,2644.0,2643.6,0.94631]
[1646466316124,3.5,2644.0,2643.4,0.25]
[1646466316125,0.83425086,2644.1,2643.4,0.25]
[1646466316324,2.7374,2644.0,2643.5,3.5]
[1646466316524,2.73836,2644.0,2643.2,0.05307829]
[1646466316724,1.15836943,2643.4,2643.2,0.05307829]
[1646466316963,0.00294057,2643.9,2643.2,0.99945829]
[1646466317162,3.50294057,2643.9,2643.2,0.05307829]
[1646466317362,0.00294057,2643.9,2643.2,3.55307829]
[1646466317561,3.50294057,2643.9,2643.2,3.55307829]
[1646466317760,2.73836,2644.0,2643.2,3.55307829]
[1646466317962,2.73836,2644.0,2643.2,0.05307829]
[1646466318162,0.94623967,2643.3,2643.2,0.05307829]
[1646466319164,4.7,2643.2,2642.6,0.25]
[1646466319366,3.5,2643.1,2642.6,3.5]
[1646466319567,3.5,2643.1,2642.0,0.25]
[1646466319568,2.7574,2643.0,2642.0,0.25]
[1646466319765,3.5,2642.9,2642.0,0.25]
[1646466319964,3.50096,2642.9,2642.0,0.25]
[1646466320166,1.0,2642.7,2642.0,0.25]
[1646466320365,1.00096,2642.7,2642.1,3.5]
[1646466320567,0.89527214,2642.3,2642.1,3.5]
[1646466321020,0.84527214,2642.3,2641.9,0.9468]
[1646466321821,0.00283878,2642.2,2641.9,0.9468]
[1646466322021,0.00283878,2642.2,2641.9,3.7869933]
[1646466322726,0.00096,2642.6,2642.0,1.89348]
[1646466322922,0.0028388,2642.2,2642.0,1.89348]
[1646466323724,0.00096,2642.7,2642.0,1.89348]
[1646466323926,1.0668978,2642.8,2642.0,1.89348]
[1646466324125,0.00272221,2642.2,2642.1,0.0213857]
[1646466324771,0.01088719,2642.6,2642.1,4.7213857]
[1646466324968,0.00096,2642.8,2642.1,5.6678457]
[1646466325172,2.75836,2643.0,2642.3,1.89279]
[1646466325369,0.01026949,2642.7,2642.5,0.9463795]
[1646466325570,2.71766949,2643.0,2642.5,0.9463795]
[1646466325771,2.71862949,2643.0,2642.5,0.9463795]
[1646466325971,0.00096,2643.6,2642.5,0.9463795]
[1646466326170,0.00096,2643.6,2642.8,0.94638]
[1646466326370,0.00096,2643.7,2642.8,2.8389]
[1646466326572,0.00096,2644.1,2642.9,3.5]
[1646466326971,0.00096,2644.1,2642.9,4.5]
[1646466327173,0.00096,2644.1,2643.0,0.9462895]
[1646466327375,0.00096,2644.1,2643.1,3.5]
[1646466327573,1.21638635,2644.1,2643.1,3.5]
[1646466327781,3.90608635,2644.1,2643.2,0.94623]
[1646466327972,3.90608635,2644.1,2643.1,1.89246]
[1646466328411,3.90608635,2644.1,2642.7,3.5]
[1646466328814,0.00176443,2643.7,2642.7,3.5]
[1646466329014,0.00176443,2643.7,2642.6,0.25]
[1646466329015,0.8726995,2643.3,2642.6,0.25]
[1646466329214,0.8736595,2643.3,2642.7,0.02134369]
[1646466329414,0.8726995,2643.3,2642.7,0.02134369]
[1646466330018,0.00176443,2643.1,2642.7,0.02134369]
[1646466330815,0.8736595,2643.3,2643.2,0.00014211]
[1646466331016,0.8726995,2643.3,2643.2,0.00014211]
[1646466331416,0.01175936,2643.5,2643.2,0.00014211]
[1646466332265,0.00096,2643.6,2643.2,0.00014211]
[1646466332467,1.00096,2643.7,2643.2,0.00014211]
[1646466332966,1.0,2643.7,2643.2,0.00014211]
[1646466333567,1.0,2643.7,2643.2,3.50014211]
[1646466333969,0.0017618,2643.6,2643.2,3.50014211]
[1646466334367,0.0017618,2643.6,2643.2,0.00014211]
[1646466334567,1.0,2643.7,2643.2,0.00014211]
[1646466334970,0.00294013,2643.5,2643.2,0.00014211]
[1646466335169,0.00294013,2643.5,2643.2,3.80014211]
[1646466335814,1.19344852,2643.4,2643.2,3.80014211]
[1646466337217,1.19638869,2643.4,2643.2,3.80014211]
[1646466338217,1.00096,2643.7,2643.2,3.80014211]
[1646466338416,0.00269756,2643.4,2643.2,3.80014211]
[1646466339561,2.10986588,2643.7,2643.3,0.0213641]
[1646466339761,2.10986588,2643.7,2643.5,0.9463]
[1646466339762,2.05890588,2643.7,2643.5,0.9463]
[1646466339962,0.95,2643.7,2643.5,0.9463]
[1646466340564,0.95,2643.7,2643.3,0.0213641]
[1646466340967,0.88911078,2643.4,2643.3,0.0213641]
[1646466343815,0.0025241,2643.5,2643.3,0.0213641]
[1646466344218,3.50096,2644.0,2643.2,4.74653211]
[1646466344417,0.00252408,2643.5,2643.2,4.74653211]
[1646466345118,1.05348106,2643.5,2643.2,3.80014211]
[1646466345520,1.05095698,2643.5,2643.2,3.80014211]
[1646466345722,1.05348108,2643.5,2643.2,3.80014211]
[1646466346725,1.05095698,2643.5,2643.2,3.80014211]
[1646466346974,1.05348863,2643.5,2643.2,3.80014211]
[1646466347761,1.05095698,2643.5,2643.2,3.80014211]
[1646466348162,1.05348863,2643.5,2643.2,3.80014211]
[1646466349162,1.05095698,2643.5,2643.2,3.80014211]
[1646466349462,1.05348863,2643.5,2643.2,3.80014211]
[1646466350266,1.05095698,2643.5,2643.2,3.80014211]
[1646466350467,1.05348773,2643.5,2643.2,3.80014211]
[1646466350711,3.5,2643.4,2643.2,3.80014211]
[1646466350920,15.07,2643.4,2643.2,3.80014211]
[1646466351115,3.5,2643.3,2643.2,3.80014211]
[1646466351817,0.00253077,2643.4,2643.2,3.80014211]
[1646466352718,4.55095698,2643.5,2643.2,3.80014211]
[1646466352920,0.00253077,2643.4,2643.2,3.80014211]
[1646466354019,0.00253088,2643.4,2643.2,3.80014211]
[1646466354219,0.00253088,2643.4,2643.3,3.5]
[1646466354672,0.00253088,2643.4,2643.2,3.80014211]
[1646466354873,0.04432801,2643.3,2643.2,4.80014211]
[1646466355074,0.04432801,2643.3,2643.2,5.6269357]
[1646466355872,0.04432801,2643.3,2643.2,8.1269357]
[1646466356075,0.04432801,2643.3,2643.2,4.6269357]
[1646466360118,0.07034352,2643.3,2643.2,4.6269357]
[1646466361715,0.07034352,2643.3,2643.2,8.1269357]
[1646466362370,0.02034352,2643.3,2643.2,8.1269357]
[1646466365176,0.00270949,2643.4,2643.2,8.1269357]
[1646466365375,0.00270949,2643.4,2643.3,4.32679359]
[1646466365814,0.7010959,2643.7,2643.3,0.82679359]
[1646466366014,0.00096,2643.9,2643.3,0.82679359]
[1646466366218,0.00262422,2643.5,2643.3,0.82679359]
[1646466366814,0.00262422,2643.5,2643.3,4.32679359]
[1646466367014,0.70106612,2643.8,2643.4,4.32679359]
[1646466367214,0.70202612,2643.7,2643.5,0.82679359]
[1646466367417,0.01049522,2643.9,2643.5,0.82679359]
[1646466367619,0.70093689,2643.8,2643.5,0.82679359]
[1646466368018,0.70093689,2643.8,2643.6,0.82679359]
[1646466368219,0.70093689,2643.8,2643.2,8.92927324]
[1646466368220,0.70093689,2643.8,2643.7,0.82679359]
[1646466368417,0.70093689,2643.8,2643.3,0.82679359]
[1646466368619,0.70093689,2643.7,2643.3,0.82679359]
[1646466368821,0.70093689,2643.6,2643.3,0.82679359]
[1646466369018,0.70093689,2643.5,2643.3,0.82679359]
[1646466369220,0.0026358,2643.8,2643.3,0.82679359]
[1646466369475,0.70270995,2644.0,2643.3,0.82679359]
[1646466369669,0.70174995,2644.0,2643.3,0.82679359]
[1646466369866,0.00251054,2643.5,2643.3,0.82679359]
[1646466370066,0.00251054,2643.5,2643.4,0.82679359]
[1646466370669,3.50251054,2643.5,2643.4,0.82679359]
[1646466370871,5.15134995,2643.5,2643.4,0.82679359]
[1646466371069,6.21056604,2643.5,2643.3,0.01575969]
[1646466371271,4.20174995,2643.4,2643.3,0.01575969]
[1646466371473,4.20174995,2643.4,2643.3,0.84552681]
[1646466371672,4.20174995,2643.4,2643.2,0.00014211]
[1646466371872,4.20174995,2643.3,2643.2,0.00014211]
[1646466372972,0.70174995,2643.3,2643.2,0.00014211]
[1646466373221,4.7,2643.1,2641.3,2.25299005]
[1646466373420,4.7,2643.1,2641.4,0.68789194]
[1646466373421,3.0,2641.9,2641.4,0.68789194]
[1646466373622,3.0,2641.5,2640.8,0.6883443]
[1646466373823,3.0,2641.5,2640.2,0.91779239]
[1646466373824,1.0,2640.8,2640.2,0.91779239]
[1646466374027,1.0,2640.8,2640.4,0.6885966]
[1646466374223,1.0,2640.8,2640.1,1.68854291]
[1646466374425,1.0,2640.8,2640.2,0.6885966]
[1646466374624,1.0,2640.8,2639.9,1.16779239]
[1646466374924,1.0,2640.8,2639.9,0.25]
[1646466375122,4.18971267,2641.1,2640.0,7.062]
[1646466375123,3.5,2641.1,2640.0,7.062]
[1646466375323,0.96423026,2640.7,2640.0,7.062]
[1646466375725,0.94762,2640.5,2640.0,7.062]
[1646466376123,2.85946026,2640.7,2640.0,7.062]
[1646466376124,0.96423026,2640.7,2640.0,7.062]
[1646466376426,0.93994832,2640.3,2640.0,7.062]
[1646466377097,0.93994832,2640.3,2640.2,0.00272599]
[1646466377499,3.5,2640.7,2640.2,0.00272599]
[1646466377897,3.5,2640.7,2640.0,10.862]
[1646466377898,3.957,2640.7,2640.0,10.862]
[1646466378096,3.957,2640.7,2640.3,0.00118189]
[1646466378898,1.05880398,2640.4,2640.3,0.00118189]
[1646466379098,3.5,2640.7,2640.0,10.862]
[1646466379303,2.4066,2640.9,2640.4,0.00271962]
[1646466379500,3.5,2640.8,2640.4,0.00271962]
[1646466380299,1.05262581,2640.7,2640.0,7.062]
[1646466380500,1.457,2640.9,2640.5,0.00271958]
[1646466380501,3.5,2640.6,2640.5,0.00271958]
[1646466380719,3.45,2640.8,2640.5,0.00271958]
[1646466381326,4.39759,2640.8,2640.5,0.00271958]
[1646466381521,4.39759,2640.8,2640.0,7.062]
[1646466381723,1.09836859,2640.4,2640.0,7.062]
[1646466382924,1.09836859,2640.4,2640.1,0.00118477]
[1646466383325,0.1892,2640.7,2640.1,0.00118477]
[1646466383924,0.1892,2640.7,2640.0,7.062]
[1646466384125,0.1892,2640.7,2640.3,0.00118468]
[1646466384765,1.16792377,2640.6,2640.3,0.00118468]
[1646466385265,1.16792377,2640.6,2640.3,0.00118465]
[1646466385464,1.457,2640.9,2640.3,0.00118465]
[1646466386268,1.457,2640.9,2640.0,7.062]
[1646466386468,1.16177974,2640.7,2640.0,7.062]
[1646466386767,1.16177974,2640.7,2640.5,0.00295323]
[1646466387571,1.16177974,2640.7,2640.3,3.8]
[1646466387769,1.16177974,2640.7,2640.5,0.00295323]
[1646466388816,1.16177974,2640.7,2640.3,3.8]
[1646466389013,1.16177974,2640.7,2640.5,0.00109616]
[1646466389421,1.6462,2641.1,2640.5,0.00109616]
[1646466389619,0.457,2641.1,2640.5,0.00109616]
[1646466390820,0.99970023,2640.9,2640.5,0.00109616]
[1646466392172,0.99970023,2640.9,2640.3,3.8]
[1646466392973,0.99970023,2640.9,2640.6,0.00288252]
[1646466393274,0.00329255,2640.5,2640.3,3.8]
[1646466395725,0.99581136,2640.5,2640.3,3.8]
[1646466396516,0.99581136,2640.5,2640.3,3.80118164]
[1646466397419,0.99581136,2640.5,2640.3,3.8]
[1646466397617,0.99581136,2640.5,2640.3,3.80295653]
[1646466398020,0.00329255,2640.5,2640.3,3.80295653]
[1646466398617,0.00329255,2640.5,2640.3,3.8]
[1646466398918,0.00329255,2640.5,2640.3,3.80295653]
[1646466399770,0.00329255,2640.5,2640.3,3.8]
[1646466399973,0.00329255,2640.5,2640.3,3.80295653]
[1646466400977,0.00329255,2640.5,2640.3,3.8]
[1646466401178,0.00329255,2640.5,2640.3,3.80109399]
[1646466402177,0.00329255,2640.5,2640.3,3.8]
[1646466402377,0.00329255,2640.5,2640.3,3.80287105]
[1646466403317,0.00329255,2640.5,2640.3,3.8]
[1646466403520,0.00329255,2640.5,2640.3,3.80287105]
[1646466404518,0.00329255,2640.5,2640.3,3.8]
[1646466404918,0.00329255,2640.5,2640.3,3.80282603]
[1646466405923,0.00329255,2640.5,2640.3,3.8]
[1646466406123,0.00329255,2640.5,2640.3,3.80282603]
[1646466406963,0.00329255,2640.5,2640.3,3.8]
[1646466407165,0.00329255,2640.5,2640.3,3.80274171]
[1646466408169,0.00329255,2640.5,2640.3,3.8]
[1646466408371,0.00329255,2640.5,2640.3,3.80266239]
[1646466409373,0.00329255,2640.5,2640.3,3.8]